Workbook

Sheet CashFlow
B1: 232 Main St. Ansonia, CT | E1: New Roof - New HVAC - Renovated 6 Units - New Windows - Repointed Brick
B2: 8 Units - 7 Residential & 1 Commercial Unit
B4: Monthly Operating Income | C4: As Is | D4: Pro Forma
B5: Number of Units | C5: 8 | D5: 8
B6: Average Monthly Rent per Unit | C6: =C7/C5 -> 1593.75 | D6: 1987.5
B7: Total Rental Income | C7: 12750 | D7: 15900
B8: % Vacancy and Credit Losses | C8: 0.05 | D8: 0.05 | E8: 5% Rule of Thumb
B9: Total Vacancy Loss | C9: =C8*C7 -> 637.5 | D9: 795
B10: Other Monthly Income (laundry, vending, parking, etc.)
B11: Gross Monthly Operating Income | C11: =C7-C9+C10 -> 12112.5 | D11: 15105
B13: Monthly Operating Expenses
B14: Property Management Fees
B15: Repairs and Maintenance | C15: =C11*0.05 -> 605.625 | D15: 755.25 | E15: 5% Rule of Thumb
B16: Real Estate Taxes | C16: =14613/12 -> 1217.75 | D16: 1217.75
B17: Rental Property Insurance | C17: 600 | D17: 600
B18: Landscaping
B19: Cleaning
B20: Common Utilities | E20: Common Utiltiies
B21: - Water and Sewer | C21: =(600*8)/12 -> 400 | D21: 400 | E21: $600 Unit/Yr
B22: - Garbage | C22: 400 | D22: 400
B23: - Electric
B24: - Heat | C24: 400 | D24: 400
B25: Accounting and Legal
B26: Advertising
B27: Monthly Operating Expenses | C27: =SUM(C14:C26) -> 3623.375 | D27: 3773
B29: Net Operating Income (NOI)
B30: Total Annual Operating Income | C30: =C11*12 -> 145350 | D30: 181260
B31: Total Annual Operating Expense | C31: =C27*12 -> 43480.5 | D31: 45276
B32: Annual Net Operating Income | C32: =C30-C31 -> 101869.5 | D32: 135984
B34: Capitalization Rate and Valuation
B35: Desired Capitalization Rate | C35: 0.07 | D35: 0.07
B36: Property Valuation (Offer Price) | C36: =IF(C35=0," - ",C32/C35) -> 1455278.571 | D36: 1942628.571
B37: Actual Purchase Price | C37: 1500000 | D37: 1500000
B38: Actual Capitalization Rate | C38: =IF(C37=0," - ",C32/C37) -> 0.067913 | D38: 0.090656
B40: Loan Information
B41: Down Payment | C41: =C37*0.3 -> 450000 | D41: 450000 | E41: 30% Down
B42: Loan Amount | C42: =C37-C41 -> 1050000 | D42: 1050000 | E42: 70% LTV
B43: Acquisition Costs and Loan Fees | C43: =C37*0.0075 -> 11250 | D43: 11250 | E43: .75% of Ask Price
B44: Length of Mortgage (years) | C44: 30 | D44: 30
B45: Annual Interest Rate | C45: 0.06 | D45: 0.06
B46: Initial Investment | C46: =C41+C43 -> 461250 | D46: 461250
B47: Monthly Mortgage Payment (PI) | C47: =IF(C42=0,0,-PMT(C45/12,C44*12,C42)) -> 6295.280514 | D47: 6295.280514
B48: Annual Interest | C48: =IF(C42=0,0,-CUMIPMT(C45/12,C44*12,C42,1,12,0)) -> 62649.24319 | D48: 62649.24319
B49: Annual Principal | C49: =IF(C42=0,0,-CUMPRINC(C45/12,C44*12,C42,1,12,0)) -> 12894.12298 | D49: 12894.12298
B50: Total Annual Debt Service | C50: =C47*12 -> 75543.36617 | D50: 75543.36617
B51: DEBT SERVICE RATIO | C51: =C32/C50 -> 1.348490346 | D51: 1.800078642
B53: Cash Flow and ROI
B54: Total Monthly Cash Flow | C54: =C11-C27-C47 -> 2193.844486 | D54: 5036.719486
B55: Total Annual Cash Flow | C55: =C32-C50 -> 26326.13383 | D55: 60440.63383
B56: Cash on Cash Return (ROI) | C56: =IF(C46=0," ",C55/C46) -> 0.0570756289 | D56: 0.1310366045
B58: Note: This spreadsheet should only be used for informational and educational purposes. Please verify
B59: calculations and seek professional assistance before making financial decisions.

Sheet Rent Roll
A1: Unit Number | B1: Size | C1: Current Rent | D1: Pro Forma | E1: Subsidized | F1: Notes
A2: Commercial | C2: 2500 | D2: 3000
A3: 1 | B3: 2 Bed | C3: 1200 | D3: 2100 | E3: Vacant
A4: 2 | B4: 2 Bed | C4: 1800 | D4: 2100 | E4: Vacant
A5: 3 | B5: 2 Bed | C5: 1800 | D5: 2100
A6: 4 | B6: 2 Bed | C6: 1400 | D6: 2100 | E6: Section 8
A7: 5 | B7: 2 Bed | C7: 1500 | D7: 2100
A8: 6 | B8: 1 bed | C8: 1400 | D8: 1700 | E8: Vacant
A9: 7 | B9: 1 Bed | C9: 1150 | D9: 1700 | E9: Not Renovated
B10: TOTAL | C10: =sum(C2:C9) -> 12750 | D10: =SUM(D2:D9) -> 16900
C13: =sum(C2+C5+C7+C6+C9) -> 8350
